fUST/lending_fUST_20250701
["ID","MTS","AMOUNT","RATE_DAILY","PERIOD"]
[368847265,1751376640672,-460.0,0.00017643,2]
[368847267,1751376640682,-389.69243974,0.00017643,2]
[368847269,1751376640691,-542.44127358,0.00017643,2]
[368847271,1751376640701,-460.0,0.00017643,2]
[368847273,1751376640710,-460.0,0.00017643,2]
[368847275,1751376640719,-2469.46,0.00017643,2]
[368847277,1751376640728,-1448.72,0.00017643,2]
[368847279,1751376640737,-467.24833193,0.00017643,2]
[368847281,1751376640747,-460.0,0.00017643,2]
[368847283,1751376640756,-460.0,0.00017643,2]
[368847285,1751376640767,-460.0,0.00017643,2]
[368847287,1751376640777,-460.0,0.00017643,2]
[368847289,1751376640795,-460.0,0.00017644,2]
[368847291,1751376640806,-460.0,0.00017644,2]
[368847293,1751376640817,-460.0,0.00017644,2]
[368847295,1751376640826,-460.0,0.00017644,2]
[368847297,1751376640838,-460.0,0.00017644,2]
[368847299,1751376640847,-460.0,0.00017644,2]
[368847301,1751376640857,-460.0,0.00017644,2]
[368847303,1751376640868,-460.0,0.00017644,2]
[368847305,1751376640877,-460.0,0.00017644,2]
[368847307,1751376640887,-3553.77,0.00017644,2]
[368847309,1751376640897,-500.0,0.00017644,2]
[368847311,1751376640906,-460.0,0.00017644,2]
[368847313,1751376640915,-1753.82,0.00017644,2]
[368847315,1751376640925,-5531.74,0.00017644,2]
[368847317,1751376640934,-1794.4,0.00017644,2]
[368847319,1751376640945,-460.0,0.00017644,2]
[368847321,1751376640955,-356.13628171,0.00017645,2]
[368847323,1751376640967,-460.0,0.00017645,2]
[368847325,1751376640976,-460.0,0.00017645,2]
[368847327,1751376640987,-460.0,0.00017645,2]
[368847329,1751376640996,-520.33525603,0.00017645,2]
[368847331,1751376641005,-460.0,0.00017645,2]
[368847334,1751376641018,-460.0,0.00017645,2]
[368847336,1751376641027,-352.79561752,0.00017645,2]
[368847338,1751376641037,-460.0,0.00017645,2]
[368847340,1751376641046,-460.0,0.00017645,2]
[368847342,1751376641055,-460.0,0.00017645,2]
[368847344,1751376641064,-460.0,0.00017645,2]
[368847346,1751376641074,-460.0,0.00017645,2]
[368847348,1751376641083,-511.55851506,0.00017645,2]
[368847349,1751376641092,-500.0,0.00017645,2]
[368847350,1751376641102,-500.0,0.00017645,2]
[368847351,1751376641111,-460.0,0.00017646,2]
[368847352,1751376641121,-460.0,0.00017646,2]
[368847353,1751376641131,-460.0,0.00017646,2]
[368847354,1751376641140,-414.67232968,0.00017646,2]
[368847356,1751376641150,-460.0,0.00017646,2]
[368847357,1751376641160,-460.0,0.00017646,2]
[368847358,1751376641170,-460.0,0.00017646,2]
[368847360,1751376641179,-460.0,0.00017646,2]
[368847362,1751376641189,-460.0,0.00017646,2]
[368847364,1751376641198,-460.0,0.00017646,2]
[368847366,1751376641208,-460.0,0.00017646,2]
[368847368,1751376641217,-460.0,0.00017646,2]
[368847370,1751376641227,-277.74238627,0.00017646,2]
[368847372,1751376641236,-460.0,0.00017646,2]
[368847374,1751376641245,-460.0,0.00017646,2]
[368847376,1751376641255,-460.0,0.00017646,2]
[368847378,1751376641267,-460.0,0.00017646,2]
[368847380,1751376641276,-460.0,0.00017646,2]
[368847382,1751376641285,-501.09925613,0.00017646,2]
[368847384,1751376641295,-460.0,0.00017646,2]
[368847387,1751376641305,-484.79,0.00017646,2]
[368847389,1751376641315,-460.0,0.00017646,2]
[368847391,1751376641324,-460.0,0.00017646,2]
[368847393,1751376641334,-460.0,0.00017646,2]
[368847395,1751376641343,-460.0,0.00017646,2]
[368847397,1751376641352,-460.0,0.00017646,2]
[368847399,1751376641362,-198.32,0.00017646,2]
[368847401,1751376641372,-500.0,0.00017673,2]
[368847403,1751376641381,-501.24243966,0.00017673,2]
[368847405,1751376641391,-211.36483276,0.00017673,2]
[368847407,1751376641401,-500.0,0.00017673,2]
[368847422,1751376641538,-500.0,0.00017673,2]
[368847424,1751376641547,-500.0,0.00017673,2]
[368847426,1751376641557,-500.0,0.00017673,2]
[368847428,1751376641566,-437.69616781,0.00017673,2]
[368847430,1751376641575,-500.0,0.00017673,2]
[368847432,1751376641585,-500.0,0.00017673,2]
[368847434,1751376641594,-156.98745579,0.00017673,2]
[368847436,1751376641604,-501.10552032,0.00017673,2]
[368847438,1751376641613,-2621.58477742,0.00017797,2]
[368847440,1751376641622,-460.98951801,0.00017816,2]
[368847442,1751376641632,-460.0,0.00017816,2]
[368847444,1751376641641,-460.0,0.00017817,2]
[368847446,1751376641650,-460.0,0.00017817,2]
[368847448,1751376641659,-460.0,0.00017817,2]
[368847450,1751376641669,-524.13,0.00017817,2]
[368847452,1751376641680,-3650.08,0.00017817,2]
[368847455,1751376641691,-460.0,0.00017817,2]
[368847457,1751376641701,-787.8,0.00017817,2]
[368847459,1751376641711,-460.0,0.00017817,2]
[368847461,1751376641720,-460.0,0.00017817,2]
[368847463,1751376641730,-460.0,0.00017817,2]
[368847464,1751376641740,-460.0,0.00017817,2]
[368847467,1751376641751,-1272.84,0.00017817,2]
[368847469,1751376641765,-460.0,0.00017817,2]
[368847471,1751376641776,-2622.27,0.00017817,2]
[368847473,1751376641788,-4856.27,0.00017817,2]
[368847475,1751376641800,-460.0,0.00017817,2]
[368847477,1751376641810,-460.0,0.00017817,2]
[368847479,1751376641820,-460.0,0.00017817,2]
[368847481,1751376641829,-349.97898391,0.00017817,2]
[368847483,1751376641839,-1670.35,0.00017817,2]
[368847485,1751376641848,-460.0,0.00017817,2]
[368847487,1751376641858,-460.0,0.00017817,2]
[368847489,1751376641867,-460.0,0.00017817,2]
[368847491,1751376641877,-460.0,0.00017817,2]
[368847493,1751376641887,-460.0,0.00017817,2]
[368847495,1751376641897,-632.08,0.00017817,2]
[368847497,1751376641906,-460.0,0.00017817,2]
[368847499,1751376641915,-460.0,0.00017817,2]
[368847501,1751376641924,-460.0,0.00017817,2]
[368847503,1751376641935,-2487.2,0.00017817,2]
[368847505,1751376641944,-2089.93,0.00017817,2]
[368847507,1751376641953,-460.0,0.00017817,2]
[368847509,1751376641963,-460.0,0.00017817,2]
[368847511,1751376641972,-460.0,0.00017817,2]
[368847513,1751376641981,-1083.66,0.00017817,2]
[368847515,1751376641990,-460.0,0.00017817,2]
[368847517,1751376641999,-2999.72,0.00017817,2]
[368847519,1751376642010,-500.0,0.00017817,2]
[368847521,1751376642019,-500.0,0.00017818,2]
[368847523,1751376642028,-460.0,0.00017819,2]
[368847525,1751376642038,-460.0,0.00017819,2]
[368847527,1751376642047,-460.0,0.00017819,2]
[368847529,1751376642056,-460.0,0.00017819,2]
[368847531,1751376642066,-460.0,0.00017819,2]
[368847533,1751376642075,-2053.17,0.00017819,2]
[368847535,1751376642086,-1092.8,0.00017819,2]
[368847537,1751376642096,-1591.45,0.00017819,2]
[368847539,1751376642105,-460.0,0.00017914,2]
[368847541,1751376642114,-460.0,0.00017914,2]
[368847543,1751376642123,-460.0,0.00017914,2]
[368847545,1751376642133,-460.0,0.00017914,2]
[368847547,1751376642142,-460.0,0.00017914,2]
[368847549,1751376642151,-460.0,0.00017914,2]
[368847551,1751376642161,-460.0,0.00017914,2]
[368847553,1751376642170,-460.0,0.00017914,2]
[368847555,1751376642179,-460.0,0.00017914,2]
[368847557,1751376642189,-460.0,0.00017914,2]
[368847559,1751376642199,-460.0,0.00017914,2]
[368847561,1751376642208,-460.0,0.00017914,2]
[368847563,1751376642217,-460.0,0.00017914,2]
[368847565,1751376642227,-460.0,0.00017914,2]
[368847567,1751376642236,-460.0,0.00017914,2]
[368847569,1751376642246,-629.01,0.00017914,2]
[368847571,1751376642255,-460.0,0.00017914,2]
[368847573,1751376642265,-460.0,0.00017914,2]
[368847575,1751376642275,-460.0,0.00017914,2]
[368847577,1751376642284,-460.0,0.00017914,2]
[368847579,1751376642293,-460.0,0.00017914,2]
[368847581,1751376642302,-460.0,0.00017914,2]
[368847583,1751376642311,-460.0,0.00017914,2]
[368847585,1751376642321,-460.0,0.00017914,2]
[368847587,1751376642330,-460.0,0.00017914,2]
[368847589,1751376642340,-460.0,0.00017914,2]
[368847591,1751376642349,-460.0,0.00017914,2]
[368847594,1751376642359,-460.0,0.00017914,2]
[368847595,1751376642369,-500.0,0.00017914,2]
[368847598,1751376642381,-460.0,0.00017914,2]
[368847600,1751376642391,-460.0,0.00017914,2]
[368847602,1751376642401,-642.37,0.00017914,2]
[368847604,1751376642410,-460.0,0.00017914,2]
[368847606,1751376642420,-474.1,0.00017914,2]
[368847608,1751376642430,-474.54,0.00017914,2]
[368847610,1751376642439,-460.0,0.00017914,2]
[368847612,1751376642448,-1394.04,0.00017914,2]
[368847614,1751376642457,-460.0,0.00017914,2]
[368847616,1751376642467,-460.0,0.00017914,2]
[368847618,1751376642476,-460.0,0.00017914,2]
[368847620,1751376642485,-603.08,0.00017914,2]
[368847622,1751376642495,-1256.82,0.00017914,2]
[368847624,1751376642504,-857.59,0.00017914,2]
[368847626,1751376642515,-460.0,0.00017914,2]
[368847628,1751376642525,-460.0,0.00017914,2]
[368847630,1751376642534,-460.0,0.00017914,2]
[368847632,1751376642543,-460.0,0.00017914,2]
[368847634,1751376642553,-540.67,0.00017914,2]
[368847636,1751376642562,-460.0,0.00017914,2]
[368847638,1751376642572,-1100.95,0.00017914,2]
[368847640,1751376642581,-703.62,0.00017914,2]
[368847642,1751376642590,-460.0,0.00017914,2]
[368847644,1751376642600,-513.66,0.00017914,2]
[368847646,1751376642609,-653.48,0.00017914,2]
[368847648,1751376642618,-495.49,0.00017914,2]
[368847650,1751376642628,-460.0,0.00017914,2]
[368847652,1751376642638,-678.27,0.00017914,2]
[368847654,1751376642648,-460.0,0.00017914,2]
[368847656,1751376642658,-460.0,0.00017915,2]
[368847658,1751376642667,-460.0,0.00017915,2]
[368847660,1751376642677,-460.0,0.00017915,2]
[368847662,1751376642687,-228.85128209,0.00017915,2]
[368847664,1751376642696,-460.0,0.00017915,2]
[368847666,1751376642706,-460.0,0.00017915,2]
[368847668,1751376642715,-460.0,0.00017915,2]
[368847670,1751376642725,-500.0,0.00017915,2]
[368847672,1751376642735,-823.93,0.00017915,2]
[368847674,1751376642745,-460.0,0.00017915,2]
[368847676,1751376642755,-460.0,0.00017915,2]
[368847678,1751376642766,-460.0,0.00017915,2]
[368847680,1751376642776,-460.0,0.00017915,2]
[368847682,1751376642786,-460.0,0.00017915,2]
[368847684,1751376642795,-695.91,0.00017915,2]
[368847686,1751376642808,-460.0,0.00017915,2]
[368847688,1751376642818,-460.0,0.00017915,2]
[368847690,1751376642827,-460.0,0.00017915,2]
[368847692,1751376642836,-460.0,0.00017915,2]
[368847694,1751376642847,-460.0,0.00017915,2]
[368847696,1751376642857,-460.0,0.00017915,2]
[368847698,1751376642866,-460.0,0.00017915,2]
[368847700,1751376642876,-460.0,0.00017915,2]
[368847702,1751376642886,-460.0,0.00017915,2]
[368847704,1751376642895,-979.38,0.00017915,2]
[368847706,1751376642905,-460.0,0.00017915,2]
[368847708,1751376642914,-460.0,0.00017915,2]
[368847710,1751376642923,-460.0,0.00017915,2]
[368847712,1751376642934,-460.0,0.00017915,2]
[368847714,1751376642943,-480.32778523,0.00017915,2]
[368847716,1751376642953,-460.0,0.00017915,2]
[368847718,1751376642965,-460.0,0.00017915,2]
[368847720,1751376642975,-460.0,0.00017915,2]
[368847723,1751376642988,-460.0,0.00017915,2]
[368847725,1751376642998,-460.0,0.00017917,2]
[368847727,1751376643008,-363.18648047,0.00017917,2]
[368847729,1751376643022,-460.0,0.00017917,2]
[368847731,1751376643031,-460.0,0.00017917,2]
[368847733,1751376643040,-460.0,0.00017917,2]
[368847734,1751376643054,-460.0,0.00017917,2]
[368847737,1751376643063,-460.0,0.00017917,2]
[368847738,1751376643072,-460.0,0.00017917,2]
[368847741,1751376643082,-460.0,0.00017917,2]
[368847743,1751376643091,-157.91,0.00017917,2]
[368847745,1751376643100,-236.41689429,0.00017917,2]
[368847748,1751376643113,-460.0,0.00017917,2]
[368847750,1751376643122,-1129.1,0.00017917,2]
[368847752,1751376643131,-460.0,0.00017917,2]
[368847755,1751376643143,-460.0,0.00017917,2]
[368847758,1751376643152,-518.8776768,0.00017917,2]
[368847760,1751376643163,-453.20377564,0.00017917,2]
[368847762,1751376643172,-460.0,0.00017917,2]
[368847764,1751376643181,-460.0,0.00017917,2]
[368847766,1751376643190,-460.0,0.00017917,2]
[368847769,1751376643199,-460.0,0.00017917,2]
[368847771,1751376643209,-460.0,0.00017917,2]
[368847773,1751376643218,-460.0,0.00017917,2]
[368847775,1751376643228,-460.0,0.00017917,2]
[368847777,1751376643237,-460.0,0.00017917,2]
[368847779,1751376643247,-460.0,0.00017917,2]
[368847781,1751376643258,-460.0,0.00017917,2]
[368847785,1751376643267,-538.88970804,0.00017917,2]
[368847788,1751376643277,-460.0,0.00017917,2]
[368847791,1751376643287,-460.0,0.00017917,2]
[368847794,1751376643296,-460.0,0.00017917,2]
[368847796,1751376643305,-561.30378121,0.00017917,2]
[368847799,1751376643314,-460.0,0.00017917,2]
[368847801,1751376643324,-460.0,0.00017917,2]
[368847803,1751376643333,-460.0,0.00017917,2]
[368847805,1751376643342,-460.0,0.00017917,2]
[368847809,1751376643352,-460.0,0.00017917,2]
[368847811,1751376643362,-460.0,0.00017917,2]
[368847814,1751376643371,-460.0,0.00017917,2]
[368847817,1751376643381,-467.2,0.00017917,2]
[368847819,1751376643390,-704.77,0.00017917,2]
[368847821,1751376643399,-536.3,0.00017917,2]
[368847823,1751376643409,-460.0,0.00017917,2]
[368847825,1751376643418,-460.0,0.00017917,2]
[368847827,1751376643427,-460.0,0.00017917,2]
[368847829,1751376643437,-768.12,0.00017917,2]
[368847832,1751376643446,-5015.81,0.00017917,2]
[368847834,1751376643455,-460.0,0.00017917,2]
[368847836,1751376643465,-737.94,0.00017917,2]
[368847838,1751376643475,-1161.05,0.00017917,2]
[368847840,1751376643485,-651.54,0.00017917,2]
[368847842,1751376643494,-460.0,0.00017917,2]
[368847844,1751376643504,-391.61352216,0.00017917,2]
[368847846,1751376643514,-463.16510403,0.00017917,2]
[368847848,1751376643523,-460.0,0.00017917,2]
[368847850,1751376643534,-2469.46,0.00017917,2]
[368847851,1751376643544,-1448.72,0.00017917,2]
[368847854,1751376643555,-460.0,0.00017917,2]
[368847855,1751376643567,-460.0,0.00017917,2]
[368847857,1751376643577,-460.0,0.00017917,2]
[368847859,1751376643589,-460.0,0.00017917,2]
[368847861,1751376643600,-460.0,0.00017918,2]
[368847863,1751376643610,-460.0,0.00017918,2]
[368847866,1751376643621,-460.0,0.00017918,2]
[368847869,1751376643632,-442.82744527,0.00017918,2]
[368847871,1751376643642,-460.0,0.00017918,2]
[368847874,1751376643653,-460.0,0.00017918,2]
[368847876,1751376643664,-460.0,0.00017918,2]
[368847878,1751376643676,-460.0,0.00017918,2]
[368847880,1751376643686,-3553.77,0.00017918,2]
[368847882,1751376643697,-460.0,0.00017918,2]
[368847884,1751376643707,-1753.82,0.00017918,2]
[368847886,1751376643717,-5531.74,0.00017918,2]
[368847888,1751376643727,-1794.4,0.00017918,2]
[368847890,1751376643737,-460.0,0.00017918,2]
[368847892,1751376643748,-463.06477544,0.00017919,2]
[368847894,1751376643759,-557.2582916,0.00017919,2]
[368847896,1751376643779,-460.0,0.00017919,2]
[368847900,1751376643795,-460.0,0.00017919,2]
[368847904,1751376643805,-460.0,0.00017919,2]
[368847907,1751376643816,-460.0,0.00017919,2]
[368847909,1751376643829,-460.0,0.00017919,2]
[368847911,1751376643840,-478.37098556,0.00017919,2]
[368847913,1751376643852,-460.0,0.00017919,2]
[368847916,1751376643863,-460.0,0.00017919,2]
[368847919,1751376643878,-460.0,0.0001792,2]
[368847923,1751376643892,-460.0,0.0001792,2]
[368847926,1751376643903,-193.69428544,0.0001792,2]
[368847929,1751376643916,-460.0,0.0001792,2]
[368847931,1751376643926,-463.86169144,0.0001792,2]
[368847943,1751376644066,-460.0,0.0001792,2]
[368847945,1751376644078,-283.44755733,0.0001792,2]
[368847948,1751376644090,-460.0,0.0001792,2]
[368847950,1751376644102,-460.0,0.0001792,2]
[368847952,1751376644114,-460.0,0.0001792,2]
[368847954,1751376644126,-460.0,0.0001792,2]
[368847956,1751376644138,-460.0,0.0001792,2]
[368847958,1751376644149,-460.0,0.0001792,2]
[368847960,1751376644160,-284.65128269,0.0001792,2]
[368847962,1751376644171,-460.0,0.0001792,2]
[368847964,1751376644182,-460.0,0.0001792,2]
[368847966,1751376644194,-460.0,0.0001792,2]
[368847968,1751376644205,-460.0,0.0001792,2]
[368847970,1751376644216,-1000.0,0.00017921,2]
[368847972,1751376644226,-500.0,0.00017973,2]
[368847974,1751376644237,-160.58438036,0.00017973,2]
[368847976,1751376644248,-500.85840275,0.00017973,2]
[368847978,1751376644258,-500.5416579,0.00017973,2]
[368847979,1751376644276,-500.0,0.00017973,2]
[368847981,1751376644287,-500.0,0.00017973,2]
[368847984,1751376644298,-536.71940821,0.00017973,2]
[368847985,1751376644308,-500.0,0.00017973,2]
[368847987,1751376644319,-500.0,0.00017973,2]
[368847989,1751376644329,-500.0,0.00017973,2]
[368847991,1751376644340,-500.0,0.00017973,2]
[368847993,1751376644351,-500.0,0.00017973,2]
[368847995,1751376644361,-492.30418994,0.00017973,2]
[368847997,1751376644372,-500.0,0.00017973,2]
[368847999,1751376644384,-500.0,0.00017973,2]
[368848002,1751376644398,-500.0,0.00017973,2]
[368848004,1751376644409,-500.0,0.00017973,2]
[368848006,1751376644421,-500.0,0.00017973,2]
[368848008,1751376644432,-500.0,0.00017973,2]
[368848010,1751376644442,-500.0,0.00017973,2]
[368848012,1751376644453,-500.0,0.00017973,2]
[368848014,1751376644464,-500.0,0.00017973,2]
[368848016,1751376644477,-500.0,0.00017973,2]
[368848018,1751376644488,-2383.8,0.0001801,2]
[368848020,1751376644501,-269.31,0.0001809,2]
[368848022,1751376644515,-460.0,0.00018091,2]
[368848024,1751376644526,-460.0,0.00018091,2]
[368848027,1751376644538,-460.0,0.00018091,2]
[368848029,1751376644549,-524.13,0.00018091,2]
[368848031,1751376644560,-3650.08,0.00018091,2]
[368848032,1751376644570,-460.0,0.00018091,2]
[368848034,1751376644581,-787.8,0.00018091,2]
[368848036,1751376644592,-460.0,0.00018091,2]
[368848038,1751376644604,-460.0,0.00018091,2]
[368848040,1751376644615,-460.0,0.00018091,2]
[368848042,1751376644626,-165.29600599,0.00018091,2]
[368848044,1751376644637,-1272.84,0.00018091,2]
[368848046,1751376644648,-460.0,0.00018091,2]
[368848048,1751376644659,-2622.27,0.00018091,2]
[368848051,1751376644671,-4856.27,0.00018091,2]
[368848053,1751376644682,-460.0,0.00018091,2]
[368848055,1751376644693,-460.0,0.00018091,2]
[368848057,1751376644707,-164.81121804,0.00018091,2]
[368848059,1751376644719,-1670.35,0.00018091,2]
[368848061,1751376644730,-460.0,0.00018091,2]
[368848063,1751376644741,-460.0,0.00018091,2]
[368848065,1751376644752,-460.0,0.00018091,2]
[368848067,1751376644768,-460.0,0.00018091,2]
[368848069,1751376644781,-460.0,0.00018091,2]
[368848071,1751376644796,-632.08,0.00018091,2]
[368848073,1751376644811,-460.0,0.00018091,2]
[368848075,1751376644822,-460.0,0.00018091,2]
[368848077,1751376644836,-460.0,0.00018091,2]
[368848080,1751376644847,-2487.2,0.00018091,2]
[368848082,1751376644857,-2089.93,0.00018091,2]
[368848084,1751376644868,-460.0,0.00018091,2]
[368848086,1751376644880,-460.0,0.00018091,2]
[368848088,1751376644892,-460.0,0.00018091,2]
[368848090,1751376644903,-1083.66,0.00018091,2]
[368848092,1751376644916,-460.0,0.00018091,2]
[368848094,1751376644927,-2999.72,0.00018091,2]
[368848096,1751376644939,-500.0,0.00018093,2]
[368848098,1751376644950,-460.0,0.00018093,2]
[368848100,1751376644961,-523.92465533,0.00018093,2]
[368848102,1751376644971,-460.0,0.00018093,2]
[368848104,1751376644982,-2053.17,0.00018093,2]
[368848106,1751376644996,-1092.8,0.00018093,2]
[368848108,1751376645007,-1591.45,0.00018093,2]
[368848110,1751376645232,-460.0,0.00018188,2]
[368848112,1751376645243,-460.0,0.00018188,2]
[368848114,1751376645254,-460.0,0.00018188,2]
[368848116,1751376645267,-460.0,0.00018188,2]
[368848118,1751376645278,-460.0,0.00018188,2]
[368848120,1751376645290,-460.0,0.00018188,2]
[368848122,1751376645301,-594.52826686,0.00018188,2]
[368848124,1751376645312,-460.0,0.00018188,2]
[368848126,1751376645325,-460.0,0.00018188,2]
[368848129,1751376645336,-460.0,0.00018188,2]
[368848131,1751376645346,-196.22393582,0.00018188,2]
[368848133,1751376645358,-460.0,0.00018188,2]
[368848135,1751376645369,-460.0,0.00018188,2]
[368848137,1751376645380,-460.0,0.00018188,2]
[368848139,1751376645391,-629.01,0.00018188,2]
[368848141,1751376645403,-460.0,0.00018188,2]
[368848143,1751376645414,-460.0,0.00018188,2]
[368848145,1751376645426,-460.0,0.00018188,2]
[368848147,1751376645437,-460.0,0.00018188,2]
[368848149,1751376645448,-460.0,0.00018188,2]
[368848151,1751376645460,-460.0,0.00018188,2]
[368848153,1751376645471,-460.0,0.00018188,2]
[368848155,1751376645483,-500.16,0.00018188,2]
[368848157,1751376645495,-460.0,0.00018188,2]
[368848159,1751376645506,-460.0,0.00018188,2]
[368848161,1751376645523,-452.95899402,0.00018188,2]
[368848163,1751376645536,-460.0,0.00018188,2]
[368848165,1751376645548,-460.0,0.00018188,2]
[368848167,1751376645558,-460.0,0.00018188,2]
[368848170,1751376645569,-642.37,0.00018188,2]
[368848172,1751376645581,-460.0,0.00018188,2]
[368848174,1751376645592,-474.1,0.00018188,2]
[368848175,1751376645603,-474.54,0.00018188,2]
[368848178,1751376645613,-460.0,0.00018188,2]
[368848179,1751376645624,-1394.04,0.00018188,2]
[368848181,1751376645635,-460.0,0.00018188,2]
[368848183,1751376645646,-188.28,0.00018188,2]
[368848185,1751376645657,-460.0,0.00018188,2]
[368848187,1751376645667,-603.08,0.00018188,2]
[368848189,1751376645678,-1256.82,0.00018188,2]
[368848191,1751376645689,-857.59,0.00018188,2]
[368848193,1751376645699,-460.0,0.00018188,2]
[368848195,1751376645710,-460.0,0.00018188,2]
[368848197,1751376645721,-460.0,0.00018188,2]
[368848198,1751376645732,-460.0,0.00018188,2]
[368848199,1751376645743,-540.67,0.00018188,2]
[368848200,1751376645753,-460.0,0.00018188,2]
[368848201,1751376645765,-1100.95,0.00018188,2]
[368848202,1751376645775,-703.62,0.00018188,2]
[368848203,1751376645789,-460.0,0.00018188,2]
[368848204,1751376645800,-513.66,0.00018188,2]
[368848205,1751376645811,-653.48,0.00018188,2]
[368848206,1751376645822,-495.49,0.00018188,2]
[368848207,1751376645837,-460.0,0.00018188,2]
[368848208,1751376645847,-678.27,0.00018188,2]
[368848209,1751376645857,-460.0,0.00018188,2]
[368848210,1751376645868,-460.0,0.00018189,2]
[368848211,1751376645878,-460.0,0.00018189,2]
[368848213,1751376645887,-460.0,0.00018189,2]
[368848214,1751376645899,-460.0,0.00018189,2]
[368848215,1751376645909,-460.0,0.00018189,2]
[368848217,1751376645920,-460.0,0.00018189,2]
[368848219,1751376645931,-500.0,0.00018189,2]
[368848221,1751376645941,-823.93,0.00018189,2]
[368848223,1751376645952,-460.0,0.00018189,2]
[368848225,1751376645962,-460.0,0.00018189,2]
[368848227,1751376645974,-460.0,0.00018189,2]
[368848229,1751376645984,-460.0,0.00018189,2]
[368848231,1751376645995,-460.0,0.00018189,2]
[368848233,1751376646005,-695.91,0.00018189,2]
[368848235,1751376646017,-460.0,0.00018189,2]
[368848237,1751376646028,-460.0,0.00018189,2]
[368848239,1751376646041,-460.0,0.00018189,2]
[368848241,1751376646051,-460.0,0.00018189,2]
[368848243,1751376646061,-460.0,0.00018189,2]
[368848245,1751376646071,-460.0,0.00018189,2]
[368848247,1751376646083,-460.0,0.00018189,2]
[368848249,1751376646092,-460.0,0.00018189,2]
[368848251,1751376646102,-519.56255334,0.00018189,2]
[368848253,1751376646111,-979.38,0.00018189,2]
[368848255,1751376646121,-460.0,0.00018189,2]
[368848257,1751376646131,-460.0,0.00018189,2]
[368848260,1751376646141,-460.0,0.00018189,2]
[368848263,1751376646150,-460.0,0.00018189,2]
[368848265,1751376646160,-460.0,0.00018189,2]
[368848267,1751376646170,-460.0,0.00018189,2]
[368848269,1751376646180,-460.0,0.00018189,2]
[368848271,1751376646190,-460.0,0.00018189,2]
[368848273,1751376646200,-460.0,0.00018191,2]
[368848276,1751376646210,-460.0,0.00018191,2]
[368848278,1751376646221,-460.0,0.00018191,2]
[368848280,1751376646231,-518.01521175,0.00018191,2]
[368848282,1751376646241,-460.0,0.00018191,2]
[368848284,1751376646252,-460.0,0.00018191,2]
[368848287,1751376646262,-460.0,0.00018191,2]
[368848289,1751376646272,-460.0,0.00018191,2]
[368848291,1751376646283,-1129.1,0.00018191,2]
[368848293,1751376646293,-460.0,0.00018191,2]
[368848295,1751376646303,-460.0,0.00018191,2]
[368848297,1751376646313,-460.0,0.00018191,2]
[368848299,1751376646323,-444.96,0.00018191,2]
[368848301,1751376646334,-460.0,0.00018191,2]
[368848303,1751376646345,-460.0,0.00018191,2]